fUST/lending_fUST_20250625
["ID","MTS","AMOUNT","RATE_DAILY","PERIOD"]
[367402069,1750783846498,-467.62,0.00018082,2]
[367402070,1750783846507,-151.0,0.00018082,2]
[367402071,1750783846517,-508.86,0.00018082,2]
[367402072,1750783846526,-438.62,0.00018082,2]
[367402073,1750783846535,-694.67,0.00018082,2]
[367402074,1750783846545,-151.0,0.00018082,2]
[367402075,1750783846554,-151.0,0.00018082,2]
[367402076,1750783846563,-460.0,0.00018082,2]
[367402077,1750783846573,-151.0,0.00018082,2]
[367402078,1750783846582,-731.31,0.00018082,2]
[367402079,1750783846591,-733.286799,0.00018082,2]
[367402080,1750783846601,-603.13,0.00018082,2]
[367402081,1750783846610,-460.0,0.00018082,2]
[367402082,1750783846619,-1637.85,0.00018082,2]
[367402083,1750783846628,-151.0,0.00018082,2]
[367402084,1750783846638,-151.0,0.00018082,2]
[367402085,1750783846647,-1697.65,0.00018082,2]
[367402086,1750783846656,-322.07900147,0.00018082,2]
[367402087,1750783846665,-460.0,0.00018082,2]
[367402088,1750783846675,-205.523731,0.00018082,2]
[367402089,1750783846685,-205.523731,0.00018082,2]
[367402090,1750783846694,-231.889107,0.00018082,2]
[367402091,1750783846704,-234.024265,0.00018082,2]
[367402092,1750783846713,-151.0,0.00018082,2]
[367402093,1750783846722,-151.0,0.00018082,2]
[367402094,1750783846732,-2175.83,0.00018082,2]
[367402095,1750783846741,-559.57,0.00018082,2]
[367402096,1750783846751,-234.024265,0.00018082,2]
[367402097,1750783846761,-151.0,0.00018082,2]
[367402098,1750783846770,-815.81,0.00018082,2]
[367402099,1750783846780,-1203.13,0.00018082,2]
[367402100,1750783846790,-460.0,0.00018082,2]
[367402101,1750783846799,-265.36895,0.00018082,2]
[367402102,1750783846808,-460.0,0.00018082,2]
[367402103,1750783846818,-265.36895,0.00018082,2]
[367402104,1750783846827,-151.0,0.00018082,2]
[367402105,1750783846836,-151.0,0.00018082,2]
[367402106,1750783846846,-1476.23,0.00018082,2]
[367402107,1750783846854,-914.65,0.00018082,2]
[367402108,1750783846863,-151.0,0.00018082,2]
[367402109,1750783846872,-151.0,0.00018082,2]
[367402110,1750783846881,-1453.194527,0.00018082,2]
[367402111,1750783846891,-1453.194527,0.00018082,2]
[367402112,1750783846900,-564.19,0.00018082,2]
[367402113,1750783846909,-152.481125,0.00018082,2]
[367402114,1750783846918,-460.0,0.00018082,2]
[367402115,1750783846927,-212.377536,0.00018082,2]
[367402116,1750783846936,-212.377536,0.00018082,2]
[367402117,1750783846945,-978.278483,0.00018082,2]
[367402118,1750783846954,-978.278483,0.00018082,2]
[367402119,1750783846962,-151.0,0.00018082,2]
[367402120,1750783846971,-151.0,0.00018082,2]
[367402121,1750783846980,-498.25,0.00018082,2]
[367402122,1750783846989,-776.88,0.00018082,2]
[367402123,1750783846998,-770.0,0.00018082,2]
[367402124,1750783847009,-151.0,0.0001809,2]
[367402125,1750783847018,-267.883618,0.0001809,2]
[367402126,1750783847027,-267.883618,0.0001809,2]
[367402127,1750783847036,-168.42003543,0.0001809,2]
[367402128,1750783847046,-4956.0129111,0.0001809,2]
[367402129,1750783847055,-197.468572,0.00018097,2]
[367402130,1750783847063,-197.468572,0.00018097,2]
[367402131,1750783847072,-17639.57710993,0.00018099,2]
[367402132,1750783847081,-151.0,0.00018099,2]
[367402133,1750783847091,-291.396892,0.00018099,2]
[367402134,1750783847100,-291.396892,0.00018099,2]
[367402135,1750783847110,-151.0,0.000181,2]
[367402136,1750783847119,-151.0,0.000181,2]
[367402137,1750783847130,-151.0,0.000181,2]
[367402138,1750783847139,-151.0,0.000181,2]
[367402139,1750783847148,-151.0,0.000181,2]
[367402140,1750783847157,-151.0,0.000181,2]
[367402141,1750783847167,-151.0,0.000181,2]
[367402142,1750783847176,-1194.0,0.00018114,2]
[367402143,1750783847186,-723.0,0.00018114,2]
[367402144,1750783847195,-1952.03440464,0.00018114,2]
[367402145,1750783847204,-162.774165,0.00018117,2]
[367402146,1750783847213,-162.774165,0.00018117,2]
[367402147,1750783847222,-151.0,0.00018117,2]
[367402148,1750783847231,-292.96596,0.00018117,2]
[367402149,1750783847240,-151.0,0.00018117,2]
[367402150,1750783847252,-224.726617,0.00018117,2]
[367402151,1750783847261,-397.704749,0.00018117,2]
[367402152,1750783847270,-397.704749,0.00018117,2]
[367402153,1750783847279,-267.883618,0.00018117,2]
[367402154,1750783847288,-267.883618,0.00018117,2]
[367402155,1750783847299,-152.378194,0.00018117,2]
[367402156,1750783847308,-152.378194,0.00018117,2]
[367402157,1750783847317,-151.0,0.00018117,2]
[367402158,1750783847327,-188.518795,0.00018117,2]
[367402159,1750783847336,-188.518795,0.00018117,2]
[367402160,1750783847346,-197.468572,0.00018117,2]
[367402161,1750783847355,-197.468578,0.00018117,2]
[367402162,1750783847365,-151.0,0.00018117,2]
[367402163,1750783847374,-171.18029,0.00018117,2]
[367402164,1750783847383,-151.0,0.00018117,2]
[367402165,1750783847392,-171.18029,0.00018117,2]
[367402166,1750783847400,-151.0,0.00018117,2]
[367402167,1750783847410,-151.0,0.00018117,2]
[367402168,1750783847420,-151.0,0.00018117,2]
[367402169,1750783847428,-151.0,0.00018117,2]
[367402170,1750783847438,-244.37082,0.00018117,2]
[367402171,1750783847447,-195.974063,0.00018117,2]
[367402172,1750783847456,-151.0,0.00018117,2]
[367402173,1750783847465,-195.974063,0.00018117,2]
[367402174,1750783847475,-244.37082,0.00018117,2]
[367402175,1750783847484,-259.533192,0.00018117,2]
[367402176,1750783847493,-259.533192,0.00018117,2]
[367402177,1750783847502,-853.175134,0.00018117,2]
[367402178,1750783847511,-151.0,0.00018117,2]
[367402179,1750783847520,-457.148533,0.00018117,2]
[367402180,1750783847529,-161.823595,0.00018117,2]
[367402181,1750783847539,-161.823595,0.00018117,2]
[367402182,1750783847550,-151.0,0.00018117,2]
[367402183,1750783847559,-151.0,0.00018117,2]
[367402184,1750783847568,-151.0,0.00018117,2]
[367402185,1750783847577,-229.664431,0.00018117,2]
[367402186,1750783847587,-212.67043,0.00018117,2]
[367402187,1750783847596,-151.0,0.00018117,2]
[367402188,1750783847605,-229.664431,0.00018117,2]
[367402189,1750783847614,-212.67043,0.00018117,2]
[367402190,1750783847623,-151.0,0.00018117,2]
[367402191,1750783847633,-733.286799,0.00018117,2]
[367402192,1750783847642,-770.0,0.00018133,2]
[367402193,1750783847652,-800.0,0.00018134,2]
[367402194,1750783847661,-770.0,0.0001814,2]
[367402195,1750783847670,-2024.25967761,0.00018169,2]
[367402196,1750783847679,-500.0,0.00018173,2]
[367402197,1750783847688,-500.0,0.00018173,2]
[367402198,1750783847697,-500.0,0.00018173,2]
[367402199,1750783847706,-500.0,0.00018173,2]
[367402200,1750783847715,-203.91087762,0.00018173,2]
[367402201,1750783847725,-211.12503978,0.00018173,2]
[367402202,1750783847734,-500.0,0.00018173,2]
[367402203,1750783847743,-500.0,0.00018173,2]
[367402204,1750783847753,-500.65624776,0.00018173,2]
[367402205,1750783847763,-500.0,0.00018173,2]
[367402206,1750783847772,-500.0,0.00018173,2]
[367402207,1750783847782,-500.0,0.00018173,2]
[367402208,1750783847792,-500.0,0.00018173,2]
[367402209,1750783847802,-500.0,0.00018173,2]
[367402210,1750783847811,-500.0,0.00018173,2]
[367402211,1750783847820,-500.0,0.00018173,2]
[367402212,1750783847830,-500.0,0.00018173,2]
[367402213,1750783847840,-500.99452249,0.00018173,2]
[367402214,1750783847850,-500.0,0.00018173,2]
[367402215,1750783847988,-500.0,0.00018173,2]
[367402216,1750783847998,-500.0,0.00018173,2]
[367402217,1750783848007,-500.0,0.00018173,2]
[367402218,1750783848016,-500.0,0.00018173,2]
[367402219,1750783848025,-500.0,0.00018173,2]
[367402220,1750783848034,-500.0,0.00018173,2]
[367402221,1750783848043,-500.0,0.00018173,2]
[367402222,1750783848052,-500.0,0.00018173,2]
[367402223,1750783848062,-500.0,0.00018173,2]
[367402224,1750783848071,-500.0,0.00018173,2]
[367402225,1750783848080,-500.0,0.00018173,2]
[367402226,1750783848090,-500.0,0.00018173,2]
[367402227,1750783848099,-500.0,0.00018173,2]
[367402228,1750783848108,-156.8042118,0.00018173,2]
[367402229,1750783848117,-500.0,0.00018173,2]
[367402230,1750783848127,-500.0,0.00018173,2]
[367402231,1750783848136,-500.0,0.00018173,2]
[367402232,1750783848145,-246.24509301,0.00018173,2]
[367402233,1750783848154,-500.0,0.00018173,2]
[367402234,1750783848164,-200.70594982,0.00018173,2]
[367402235,1750783848174,-500.0,0.00018173,2]
[367402236,1750783848183,-429.82093682,0.00018173,2]
[367402237,1750783848193,-500.0,0.00018173,2]
[367402238,1750783848202,-500.0,0.00018173,2]
[367402239,1750783848211,-232.72454134,0.00018173,2]
[367402240,1750783848221,-500.0,0.00018173,2]
[367402241,1750783848231,-500.0,0.00018173,2]
[367402242,1750783848240,-500.0,0.00018173,2]
[367402243,1750783848249,-500.0,0.00018173,2]
[367402244,1750783848258,-500.0,0.00018173,2]
[367402245,1750783848268,-500.0,0.00018173,2]
[367402246,1750783848279,-500.0,0.00018173,2]
[367402247,1750783848288,-500.0,0.00018173,2]
[367402248,1750783848298,-500.0,0.00018173,2]
[367402249,1750783848307,-200.0,0.00018189,2]
[367402250,1750783848316,-200.0,0.00018189,2]
[367402251,1750783848326,-365146.55772337,0.0001819,2]
[367402252,1750783848335,-162.774165,0.0001819,2]
[367402253,1750783848344,-162.774165,0.0001819,2]
[367402254,1750783848352,-151.0,0.0001819,2]
[367402255,1750783848363,-151.0,0.0001819,2]
[367402256,1750783848373,-281.276653,0.0001819,2]
[367402257,1750783848381,-151.0,0.0001819,2]
[367402258,1750783848391,-151.0,0.0001819,2]
[367402259,1750783848401,-397.704749,0.0001819,2]
[367402260,1750783848410,-397.704749,0.0001819,2]
[367402261,1750783848420,-267.883618,0.0001819,2]
[367402262,1750783848429,-267.883618,0.0001819,2]
[367402263,1750783848441,-152.378194,0.0001819,2]
[367402264,1750783848451,-152.378194,0.0001819,2]
[367402265,1750783848460,-151.0,0.0001819,2]
[367402266,1750783848469,-188.518795,0.0001819,2]
[367402267,1750783848478,-188.518795,0.0001819,2]
[367402268,1750783848487,-151.0,0.0001819,2]
[367402269,1750783848496,-171.18029,0.0001819,2]
[367402270,1750783848506,-151.0,0.0001819,2]
[367402271,1750783848515,-171.18029,0.0001819,2]
[367402272,1750783848525,-151.0,0.0001819,2]
[367402273,1750783848534,-151.0,0.0001819,2]
[367402274,1750783848545,-151.0,0.0001819,2]
[367402275,1750783848566,-151.0,0.0001819,2]
[367402276,1750783848585,-244.37082,0.0001819,2]
[367402277,1750783848600,-195.974063,0.0001819,2]
[367402278,1750783848609,-151.0,0.0001819,2]
[367402279,1750783848618,-195.974063,0.0001819,2]
[367402280,1750783848628,-244.37082,0.0001819,2]
[367402281,1750783848637,-259.533192,0.0001819,2]
[367402282,1750783848647,-259.533192,0.0001819,2]
[367402283,1750783848657,-853.175134,0.0001819,2]
[367402284,1750783848666,-151.0,0.0001819,2]
[367402285,1750783848676,-457.148533,0.0001819,2]
[367402286,1750783848686,-161.823595,0.0001819,2]
[367402287,1750783848695,-161.823595,0.0001819,2]
[367402288,1750783848705,-151.0,0.0001819,2]
[367402289,1750783848714,-151.0,0.0001819,2]
[367402290,1750783848724,-151.0,0.0001819,2]
[367402291,1750783848733,-229.664431,0.0001819,2]
[367402292,1750783848744,-212.67043,0.0001819,2]
[367402293,1750783848754,-151.0,0.0001819,2]
[367402294,1750783848763,-229.664431,0.0001819,2]
[367402295,1750783848773,-212.67043,0.0001819,2]
[367402296,1750783848783,-151.0,0.0001819,2]
[367402297,1750783848793,-151.0,0.0001819,2]
[367402298,1750783848802,-151.0,0.0001819,2]
[367402299,1750783848811,-151.0,0.0001819,2]
[367402300,1750783848821,-733.286799,0.0001819,2]
[367402301,1750783848830,-151.0,0.0001819,2]
[367402302,1750783848839,-151.0,0.0001819,2]
[367402303,1750783848849,-205.523731,0.0001819,2]
[367402304,1750783848858,-205.523731,0.0001819,2]
[367402305,1750783848868,-234.024265,0.0001819,2]
[367402306,1750783848877,-151.0,0.0001819,2]
[367402307,1750783848886,-151.0,0.0001819,2]
[367402308,1750783848896,-234.024265,0.0001819,2]
[367402309,1750783848905,-151.0,0.0001819,2]
[367402310,1750783848916,-265.36895,0.0001819,2]
[367402311,1750783848925,-291.396892,0.0001819,2]
[367402312,1750783848934,-291.396892,0.0001819,2]
[367402313,1750783848943,-265.36895,0.0001819,2]
[367402314,1750783848952,-151.0,0.0001819,2]
[367402315,1750783848962,-151.0,0.0001819,2]
[367402316,1750783848971,-151.0,0.0001819,2]
[367402317,1750783848980,-151.0,0.0001819,2]
[367402318,1750783848989,-1453.194527,0.0001819,2]
[367402319,1750783848999,-1453.194527,0.0001819,2]
[367402320,1750783849011,-212.377536,0.0001819,2]
[367402321,1750783849021,-212.377536,0.0001819,2]
[367402322,1750783849030,-978.278483,0.0001819,2]
[367402323,1750783849039,-978.278483,0.0001819,2]
[367402324,1750783849050,-151.0,0.0001819,2]
[367402325,1750783849059,-151.0,0.0001819,2]
[367402326,1750783849068,-8321.73650182,0.000182,2]
[367402327,1750783849077,-2391.0,0.00018223,2]
[367402328,1750783849087,-2099.15728568,0.00018224,2]
[367402329,1750783849097,-177.3826656,0.0001824,2]
[367402330,1750783849106,-10097.54637862,0.00018271,2]
[367402331,1750783849116,-177.3826656,0.00018276,2]
[367402332,1750783849126,-177.3826656,0.00018276,2]
[367402333,1750783849135,-177.3826656,0.00018276,2]
[367402334,1750783849145,-177.3826656,0.00018276,2]
[367402335,1750783849154,-1827.20155822,0.00018279,2]
[367402336,1750783849163,-200.0,0.00018299,2]
[367402337,1750783849172,-166.0,0.00018299,2]
[367402338,1750783849181,-160.0,0.00018299,2]
[367402339,1750783849190,-123069.00169,0.000183,2]
[367402340,1750783849199,-6745.0,0.000183,2]
[367402341,1750783849208,-162.774165,0.000183,2]
[367402342,1750783849217,-162.774165,0.000183,2]
[367402343,1750783849228,-151.0,0.000183,2]
[367402344,1750783849237,-151.0,0.000183,2]
[367402345,1750783849247,-151.0,0.000183,2]
[367402346,1750783849259,-151.0,0.000183,2]
[367402347,1750783849268,-397.704749,0.000183,2]
[367402348,1750783849277,-397.704749,0.000183,2]
[367402349,1750783849288,-267.883618,0.000183,2]
[367402350,1750783849299,-267.883618,0.000183,2]
[367402351,1750783849313,-152.378194,0.000183,2]
[367402352,1750783849329,-152.378194,0.000183,2]
[367402353,1750783849345,-151.0,0.000183,2]
[367402354,1750783849357,-188.518795,0.000183,2]
[367402355,1750783849368,-188.518795,0.000183,2]
[367402356,1750783849382,-151.0,0.000183,2]
[367402357,1750783849395,-171.18029,0.000183,2]
[367402358,1750783849407,-151.0,0.000183,2]
[367402359,1750783849423,-171.18029,0.000183,2]
[367402360,1750783849435,-151.0,0.000183,2]
[367402361,1750783849448,-151.0,0.000183,2]
[367402362,1750783849462,-151.0,0.000183,2]
[367402363,1750783849474,-151.0,0.000183,2]
[367402364,1750783849486,-244.37082,0.000183,2]
[367402365,1750783849497,-195.974063,0.000183,2]
[367402366,1750783849509,-151.0,0.000183,2]
[367402367,1750783849522,-195.974063,0.000183,2]
[367402368,1750783849535,-244.37082,0.000183,2]
[367402369,1750783849548,-259.533192,0.000183,2]
[367402370,1750783849561,-259.533192,0.000183,2]
[367402371,1750783849571,-853.175134,0.000183,2]
[367402372,1750783849584,-151.0,0.000183,2]
[367402373,1750783849595,-457.148533,0.000183,2]
[367402374,1750783849608,-161.823595,0.000183,2]
[367402375,1750783849621,-161.823595,0.000183,2]
[367402376,1750783849635,-151.0,0.000183,2]
[367402377,1750783849648,-151.0,0.000183,2]
[367402378,1750783849661,-229.664431,0.000183,2]
[367402379,1750783849674,-212.67043,0.000183,2]
[367402380,1750783849687,-151.0,0.000183,2]
[367402381,1750783849698,-229.664431,0.000183,2]
[367402382,1750783849708,-212.67043,0.000183,2]
[367402383,1750783849719,-151.0,0.000183,2]
[367402384,1750783849732,-199.279236,0.000183,2]
[367402385,1750783849747,-151.0,0.000183,2]
[367402386,1750783849761,-151.0,0.000183,2]
[367402387,1750783849772,-733.286799,0.000183,2]
[367402388,1750783849783,-151.0,0.000183,2]
[367402389,1750783849793,-234.153692,0.000183,2]
[367402390,1750783849807,-205.523731,0.000183,2]
[367402391,1750783849819,-205.523731,0.000183,2]
[367402392,1750783849830,-151.0,0.000183,2]
[367402393,1750783849843,-234.024265,0.000183,2]
[367402394,1750783849855,-151.0,0.000183,2]
[367402395,1750783849866,-234.024265,0.000183,2]
[367402396,1750783849878,-151.0,0.000183,2]
[367402397,1750783849890,-265.36895,0.000183,2]
[367402398,1750783849902,-291.396892,0.000183,2]
[367402399,1750783849914,-265.36895,0.000183,2]
[367402400,1750783849928,-291.396892,0.000183,2]
[367402401,1750783849939,-228.55587,0.000183,2]
[367402402,1750783849950,-151.0,0.000183,2]
[367402403,1750783849961,-151.0,0.000183,2]
[367402404,1750783849972,-153.134164,0.000183,2]
[367402405,1750783849984,-1453.194527,0.000183,2]
[367402406,1750783849996,-1453.194527,0.000183,2]
[367402407,1750783850007,-212.377536,0.000183,2]
[367402408,1750783850020,-212.377536,0.000183,2]
[367402409,1750783850031,-978.278483,0.000183,2]
[367402410,1750783850042,-978.278483,0.000183,2]
[367402411,1750783850055,-151.0,0.000183,2]
[367402412,1750783850067,-151.0,0.000183,2]
[367402413,1750783850078,-558.64660408,0.00018342,2]
[367402414,1750783850089,-460.0,0.00018353,2]
[367402415,1750783850101,-3236.48,0.00018353,2]
[367402416,1750783850112,-2249.35,0.00018353,2]
[367402417,1750783850124,-903.21,0.00018353,2]
[367402418,1750783850135,-460.0,0.00018353,2]
[367402419,1750783850147,-1722.8,0.00018353,2]
[367402420,1750783850158,-1997.56,0.00018353,2]
[367402421,1750783850169,-460.0,0.00018353,2]
[367402422,1750783850181,-3698.98,0.00018353,2]
[367402423,1750783850192,-598.06,0.00018353,2]
[367402424,1750783850203,-1442.19,0.00018353,2]
[367402425,1750783850215,-460.0,0.00018354,2]
[367402426,1750783850227,-460.0,0.00018354,2]
[367402427,1750783850238,-460.0,0.00018354,2]
[367402428,1750783850252,-593.53,0.00018354,2]
[367402429,1750783850263,-716.3,0.00018354,2]
[367402430,1750783850276,-656.86,0.00018354,2]
[367402431,1750783850287,-902.22,0.00018354,2]
[367402432,1750783850301,-710.88,0.00018354,2]
[367402433,1750783850312,-2412.87,0.00018354,2]
[367402434,1750783850322,-605.32,0.00018354,2]
[367402435,1750783850335,-460.0,0.00018354,2]
[367402436,1750783850346,-970.8,0.00018354,2]
[367402437,1750783850357,-599.4,0.00018354,2]
[367402438,1750783850368,-905.82,0.00018354,2]
[367402439,1750783850378,-674.19,0.00018354,2]
[367402440,1750783850390,-460.0,0.00018354,2]
[367402441,1750783850400,-460.0,0.00018354,2]
[367402442,1750783850412,-460.0,0.00018354,2]
[367402443,1750783850423,-460.0,0.00018354,2]
[367402444,1750783850433,-574.8,0.00018354,2]
[367402445,1750783850444,-460.0,0.00018354,2]
[367402446,1750783850456,-613.96,0.00018354,2]
[367402447,1750783850467,-578.76,0.00018354,2]
[367402448,1750783850478,-460.0,0.00018354,2]
[367402449,1750783850489,-1329.91,0.00018354,2]
[367402450,1750783850500,-460.0,0.00018355,2]
[367402451,1750783850511,-460.0,0.00018355,2]
[367402452,1750783850522,-200.0,0.00018355,2]
[367402453,1750783850533,-3899.68,0.00018355,2]
[367402454,1750783850544,-642.99,0.00018355,2]
[367402455,1750783850555,-460.0,0.00018355,2]
[367402456,1750783850566,-684.89,0.00018355,2]
[367402457,1750783850577,-1983.06,0.00018355,2]
[367402458,1750783850588,-764.34,0.00018355,2]
[367402459,1750783850600,-460.0,0.00018355,2]
[367402460,1750783850611,-460.0,0.00018355,2]
[367402461,1750783850622,-1999.37,0.00018355,2]
[367402462,1750783850634,-525.70748846,0.00018356,2]
[367402463,1750783850646,-162.774165,0.00018356,2]
[367402464,1750783850657,-162.774165,0.00018356,2]
[367402465,1750783850668,-460.0,0.00018356,2]
[367402466,1750783850679,-460.0,0.00018356,2]
[367402467,1750783850691,-460.0,0.00018356,2]
[367402468,1750783850702,-212.559725,0.00018356,2]
[367402469,1750783850714,-460.0,0.00018356,2]
[367402470,1750783850725,-460.0,0.00018356,2]
[367402471,1750783850736,-460.0,0.00018356,2]
[367402472,1750783850748,-460.0,0.00018356,2]
[367402473,1750783850759,-460.0,0.00018356,2]
[367402474,1750783850770,-646.25,0.00018356,2]
[367402475,1750783850780,-460.0,0.00018356,2]
[367402476,1750783850792,-460.0,0.00018356,2]
[367402477,1750783850803,-212.67043,0.00018356,2]
[367402478,1750783850814,-212.67043,0.00018356,2]
[367402479,1750783850825,-460.0,0.00018356,2]
[367402480,1750783850836,-460.0,0.00018356,2]
[367402481,1750783850847,-789.56,0.00018356,2]
[367402482,1750783850859,-467.62,0.00018356,2]
[367402483,1750783850870,-508.86,0.00018356,2]
[367402484,1750783850879,-694.67,0.00018356,2]
[367402485,1750783850889,-151.0,0.00018356,2]
[367402486,1750783850899,-460.0,0.00018356,2]
[367402487,1750783850908,-178.72365,0.00018356,2]
[367402488,1750783851111,-731.31,0.00018356,2]
[367402489,1750783851130,-603.13,0.00018356,2]
[367402490,1750783851140,-460.0,0.00018356,2]
[367402491,1750783851149,-1637.85,0.00018356,2]
[367402492,1750783851159,-151.0,0.00018356,2]
[367402493,1750783851168,-323.73245497,0.00018356,2]
[367402494,1750783851460,460.0,0.00016438,2]
[367402495,1750783851554,-353.6040947,0.000176,2]
[367402496,1750783851564,-460.0,0.00017804,2]
[367402497,1750783851574,-460.0,0.00018078,2]
[367402498,1750783851583,-460.0,0.00018352,2]
[367402499,1750783851593,-1373.91754503,0.00018356,2]
[367402500,1750783851602,-460.0,0.00018356,2]
[367402501,1750783851611,-151.0,0.00018356,2]
[367402502,1750783851620,-234.024265,0.00018356,2]
[367402503,1750783851630,-628.02426779,0.00018356,2]
[367402504,1750783851642,-616.8825347,0.00018356,2]
[367402505,1750783851883,-930.92319751,0.00018356,2]
[367402506,1750783851893,-151.0,0.00018356,2]
[367402507,1750783851902,-234.024265,0.00018356,2]
[367402508,1750783851911,-241.172745,0.00018356,2]
[367402509,1750783851920,-815.81,0.00018356,2]
[367402510,1750783851929,-1203.13,0.00018356,2]
[367402511,1750783851938,-460.0,0.00018356,2]
[367402512,1750783851948,-265.36895,0.00018356,2]
[367402513,1750783851958,-460.0,0.00018356,2]
[367402514,1750783851967,-265.36895,0.00018356,2]
[367402515,1750783851976,-151.0,0.00018356,2]
[367402516,1750783851985,-1476.23,0.00018356,2]
[367402517,1750783851995,-914.65,0.00018356,2]
[367402518,1750783852004,-151.0,0.00018356,2]
[367402519,1750783852014,-1453.194527,0.00018356,2]
[367402520,1750783852023,-564.19,0.00018356,2]
[367402521,1750783852033,-1453.194527,0.00018356,2]
[367402522,1750783852042,-351.5508323,0.00018356,2]
[367402523,1750783852052,-978.278483,0.00018356,2]
[367402524,1750783852061,-978.278483,0.00018356,2]
[367402525,1750783852071,-498.25,0.00018356,2]
[367402526,1750783852080,-776.88,0.00018356,2]
[367402527,1750783852089,-200.0,0.0001837,2]
[367402528,1750783852098,-282.09677659,0.0001837,2]
[367402529,1750783852108,-397.704749,0.00018371,2]
[367402530,1750783852117,-397.704749,0.00018371,2]
[367402531,1750783852126,-152.378194,0.00018371,2]
[367402532,1750783852138,-152.378185,0.00018371,2]
[367402533,1750783852148,-551.56761293,0.00018371,2]
[367402534,1750783852158,-101.43411901,0.00018371,2]
[367402535,1750783859759,-114.35232899,0.00018371,2]
[367402536,1750783859769,-188.518795,0.00018371,2]
[367402537,1750783859779,-79.23546004,0.00018371,2]
[367402538,1750783860122,460.0,0.00016438,2]
[367402539,1750783867270,17914.21298605,0.000169,2]
[367402540,1750783867293,1322.96892747,0.000169,2]
[367402541,1750783871829,524.56977055,0.00016438,2]
[367402542,1750783883848,584.57928508,0.00016438,2]
[367402543,1750783884144,460.0,0.00016438,2]
[367402544,1750783884427,460.0,0.00016712,2]
[367402545,1750783884687,460.0,0.00016986,2]
[367402546,1750783889106,460.0,0.00016438,2]
[367402547,1750783890658,560.77469284,0.00016438,2]
[367402548,1750783895500,460.0,0.00016438,2]
[367402551,1750783902004,460.0,0.00016438,2]
[367402552,1750783902276,460.0,0.00016712,2]
[367402554,1750783907997,482.28,0.00016438,2]
[367402555,1750783908450,482.28,0.00016712,2]
[367402556,1750783908708,482.28,0.00016986,2]
[367402557,1750783909360,500.0,0.00016438,2]
[367402558,1750783915955,460.0,0.00016438,2]
[367402559,1750783916080,460.0,0.00016438,2]
[367402560,1750783916197,460.0,0.00016712,2]
[367402561,1750783921427,441.38031523,0.00016438,2]
[367402562,1750783923396,430.75743754,0.00016438,2]
[367402563,1750783930450,460.0,0.00016438,2]
[367402564,1750783930748,446.80107923,0.00016712,2]
[367402566,1750783937785,460.0,0.00016438,2]
[367402567,1750783938043,460.0,0.00016712,2]
[367402568,1750783938104,460.0,0.00016438,2]
[367402569,1750783938300,460.0,0.00016986,2]
[367402570,1750783944783,460.0,0.00016438,2]
[367402571,1750783945147,460.0,0.00016712,2]
[367402572,1750783945307,421.35419247,0.00016438,2]